Cogmind - Beta 17 @@@ ROGUE MODE // 2026.06.27 @ 12:57:12 // Winter2019/RPGLIKE Player: Willow Result: Self-destructed Performance ------------- Evolutions (3) 1500 Regions Visited (8) 1600 Robots Destroyed (139) 695 Value Destroyed (3795) 3795 Prototype IDs (5) 100 Alien Tech Used (0) 0 Bonus (150) 150 TOTAL SCORE: 7840 Bonus ------- High Alert Combat Kills 150 Cogmind --------- Core Integrity 600/600 Matter 300/300 Energy 160/160 System Corruption 0% Temperature Cool (0) Movement Rolling (115) Ox3 Location -7/Factory Parts ------- > --- POWER (1) -------- Light Nuclear Core > --- PROPULSION (3) --- Armored Treads Armored Treads Wheel > --- UTILITY (8) ------ Improved Sensor Array Improved Signal Interpreter Advanced Targeting Computer Hardened Medium Armor Plating Hardlight Generator Hacking Suite Hacking Suite > --- WEAPON (4) ------- Heavy Particle Cannon Autogun Autogun Gauss Rifle > --- INVENTORY (4) ---- Protomatter-62 Protomatter-54 Protomatter-50 High-capacity Matter Pod (200) Peak State ------------ > --- POWER ------------ Light Nuclear Core > --- PROPULSION ------- Armored Treads Armored Treads Wheel > --- UTILITY ---------- Improved Sensor Array Improved Signal Interpreter Seismic Detector Advanced Targeting Computer Hardened Medium Armor Plating Hardlight Generator Hacking Suite Hacking Suite > --- WEAPON ----------- Heavy Particle Cannon Autogun Autogun Gauss Rifle > --- INVENTORY -------- Protomatter Protomatter Protomatter High-capacity Matter Pod [Rating: 43] Favorites ----------- Power Light Nuclear Core Engine Light Ion Engine Power Core Light Nuclear Core Propulsion Armored Treads Treads Armored Treads Wheel Wheel Utility Seismic Detector Device Seismic Detector Storage High-capacity Matter Pod Processor Signal Interpreter Hackware Hacking Suite Protection Hardened Medium Armor Plating Weapon Autogun Energy Cannon Heavy Particle Cannon Ballistic Gun Autogun Build | -11 -10 -10 -9 -9 -9 -8 -8 -7 ------- Run | Yrd Mat Min Mat Min Exi Min Mat Fac Slots Evolved 12 | 3 2 1 3 . . . 3 . Power . | . . . . . . . . . Propulsion 2 | 1 . 1 . . . . . . Utility 7 | 1 1 . 2 . . . 3 . Weapon 3 | 1 1 . 1 . . . . . Parts Attached 34 | 6 6 2 9 . . 2 9 . Power 5 | 1 . 1 2 . . 1 . . Engine 4 | 1 . 1 2 . . . . . Core 1 | . . . . . . 1 . . Reactor . | . . . . . . . . . Propulsion 5 | 2 . 1 2 . . . . . Treads 4 | 1 . 1 2 . . . . . Leg . | . . . . . . . . . Wheel 1 | 1 . . . . . . . . Hover . | . . . . . . . . . Flight . | . . . . . . . . . Utility 13 | 1 2 . 3 . . 1 6 . Device 4 | 1 . . . . . 1 2 . Storage 1 | . 1 . . . . . . . Processor 3 | . . . 1 . . . 2 . Hackware 2 | . . . . . . . 2 . Protection 3 | . 1 . 2 . . . . . Artifact . | . . . . . . . . . Weapon 11 | 2 4 . 2 . . . 3 . Energy Gun . | . . . . . . . . . Energy Cannon 2 | . . . . . . . 2 . Ballistic Gun 9 | 2 4 . 2 . . . 1 . Ballistic Cannon . | . . . . . . . . . Launcher . | . . . . . . . . . Special Weapon . | . . . . . . . . . Impact Weapon . | . . . . . . . . . Slashing Weapon . | . . . . . . . . . Piercing Weapon . | . . . . . . . . . Special Melee Weapon . | . . . . . . . . . Unidentified Prototypes 2 | . . . 1 . . . 1 . Parts Lost . | . . . . . . . . . Power . | . . . . . . . . . Propulsion . | . . . . . . . . . Utility . | . . . . . . . . . Weapon . | . . . . . . . . . Highest Loss Streak . | . . . . . . . . . To Critical Strikes . | . . . . . . . . . Average Backups . | . . 1 . 1 1 1 1 . Power . | . . . . . . . . . Propulsion . | . . . . . . . . . Utility . | . . . . . . . . . Weapon . | . . 1 . 1 1 1 . . Tool/Special . | . . . . . . . . . Unused Backups 3 | . 1 . 1 . . . 1 . Power . | . . . . . . . . . Propulsion . | . . . . . . . . . Utility . | . . . . . . . . . Weapon 3 | . 1 . 1 . . . 1 . Tool/Special . | . . . . . . . . . Average Slot Usage (%) 94 | . 96 98 92 92 92 92 98 . Engine 5 | . 12 10 7 7 7 . . . Core 2 | . . . . . . 6 6 . Treads 14 | . 12 12 15 15 15 15 12 . Wheel 8 | . 12 10 7 7 7 7 6 . Device 10 | . 12 10 7 7 7 7 14 . Storage 5 | . 3 10 7 7 7 7 1 . Processor 6 | . . . 6 7 7 7 11 . Hackware 2 | . . . . . . . 10 . Protection 8 | . 12 10 7 7 7 7 6 . Ballistic Gun 27 | . 26 31 28 30 30 30 23 . Peak Build Rating 43 | 6 12 14 22 22 22 26 43 . Average Rating 21 | 4 8 12 19 22 22 23 36 . On Entrance 18 | . 6 12 14 22 22 22 24 42 Avg Prop Armor Cover (%) 11 | 10 9 8 13 13 14 12 13 . Naked Turns . | . . . . . . . . . Heaviest Build 36 | 9 22 24 28 28 28 30 36 . Greatest Support 40 | 20 20 10 40 40 10 40 40 . Greatest Overweight (x) 3 | . 2 2 2 2 2 2 3 . Average Overweight (x) 1 | . 1 2 1 1 2 1 2 . Largest Inventory Capacity 4 | . 1 1 2 2 2 3 4 . Average Capacity 2 | . . 1 1 2 2 2 3 . Most Carried 4 | . 1 1 2 2 2 3 4 . Average Carried 2 | . . 1 1 2 2 2 3 . Final Capacity 4 | . 1 1 2 2 2 3 4 4 Final Carried 4 | . 1 1 2 2 2 3 4 4 Class Distribution -------------------- 62% | Gunner 22% | Hacker-Gunner 15% | Mutant Dominant Class ---------------- Mutant | -10/Materials Gunner | -10/Mines Gunner | -9/Materials Gunner | -9/Mines Gunner | -9/Exiles Gunner | -8/Mines Hacker-Gunner | -8/Materials Hacker-Gunner | -7/Factory Resources | -11 -10 -10 -9 -9 -9 -8 -8 -7 ----------- Run | Yrd Mat Min Mat Min Exi Min Mat Fac Matter Collected 3787 | 288 563 100 1182 128 . 468 1058 . Remotely . | . . . . . . . . . Salvage Created 4305 | 95 555 41 1488 116 . 556 1454 . Parts 307 | 6 36 6 113 13 . 25 108 . Haulers Intercepted 9 | . 2 . 3 . . . 4 . Recyclers Shooed 1 | . . . 1 . . . . . Parts Field Recycled . | . . . . . . . . . Retrieved Matter . | . . . . . . . . . Parts Self-Destructed . | . . . . . . . . . Prevented . | . . . . . . . . . Parts Restored . | . . . . . . . . . Kills | -11 -10 -10 -9 -9 -9 -8 -8 -7 ------- Run | Yrd Mat Min Mat Min Exi Min Mat Fac Combat Hostiles Destroyed 117 | . 15 4 38 10 . 14 36 . Guns 115 | . 15 4 38 10 . 14 34 . Cannons 2 | . . . . . . . 2 . Classes Destroyed 11 | 2 4 . 3 . . 1 1 . Tunneler 2 | 1 . . . . . . 1 . Hauler 9 | . 2 . 3 . . . 4 . Recycler 5 | 1 . . 3 . . 1 . . Operator 3 | . . . 2 . . . 1 . Watcher 3 | . 1 . 1 . . . 1 . Swarmer 45 | . 6 4 11 10 . 3 11 . Grunt 46 | . 9 . 16 . . 9 12 . Brawler 2 | . . . 1 . . . 1 . Sentry 18 | . . . 10 . . . 8 . Specialist 2 | . . . . . . . 2 . Hunter 4 | . . . . . . 2 2 . Best Kill Streak 9 | 2 3 3 9 6 . 4 7 . Combat Bots Only 9 | . 3 3 9 5 . 4 6 . Max Kills in Single Turn 2 | 1 1 1 2 2 . 1 2 . Gunslinging 1 | . . . 1 1 . . 1 . Exploded . | . . . . . . . . . Melee . | . . . . . . . . . Uniques/NPCs Destroyed . | . . . . . . . . . Combat | -11 -10 -10 -9 -9 -9 -8 -8 -7 -------- Run | Yrd Mat Min Mat Min Exi Min Mat Fac Hostile Shots Fired 316 | . 55 10 119 11 . 42 79 . Missed 98 | . 11 4 35 1 . 16 31 . Hits 218 | . 44 6 84 10 . 26 48 . Projectile 218 | . 44 6 84 10 . 26 48 . Critical Strikes 4 | . . . . 1 . . 3 . Damage Taken 2348 | . 412 58 922 79 . 379 498 . Core 1703 | . 300 43 685 47 . 265 363 . Absorbed by Shields 140 | . . . . . . . 140 . Redirected to Core 1485 | . 241 34 589 47 . 236 338 . Ignored by Resistances 104 | . 24 1 42 . . 14 23 . Core Remaining (%) 99 | 100 . 97 . . . 100 100 . Volleys Fired 243 | 7 43 8 85 7 . 28 65 . Largest 4 | 2 2 3 4 4 . 4 4 . Hottest 149 | 40 46 69 92 92 . 92 149 . Shots Fired 796 | 14 86 24 276 28 . 112 256 . Gun 780 | 14 86 24 276 28 . 112 240 . Cannon 16 | . . . . . . . 16 . Launcher . | . . . . . . . . . Special . | . . . . . . . . . Kinetic 780 | 14 86 24 276 28 . 112 240 . Thermal 16 | . . . . . . . 16 . Explosive . | . . . . . . . . . Electromagnetic . | . . . . . . . . . Robot Hit Streak 20 | 11 20 6 9 4 . 15 18 . Robot Miss Streak 7 | 2 3 3 7 4 . 2 2 . Penetration Max 1 | . . . . . . . 1 . Secondary Targets 16 | . 3 1 7 4 . . 1 . Max Gunslinging Chain 2 | . 1 1 1 2 . . 1 . Shots Hit Robots 507 | 11 64 11 164 10 . 78 169 . Core Hits 220 | 4 28 5 63 10 . 33 77 . Critical Kills 5 | . . . 2 1 . 1 1 . Critical Parts Destroyed 6 | . 1 . 3 . . 1 1 . Critical Strikes 11 | . 1 . 5 1 . 2 2 . Destroy 11 | . 1 . 5 1 . 2 2 . Melee Attacks . | . . . . . . . . . Impact . | . . . . . . . . . Slashing . | . . . . . . . . . Piercing . | . . . . . . . . . Sneak Attacks . | . . . . . . . . . Combat Hostiles . | . . . . . . . . . Follow-up Attacks . | . . . . . . . . . Damage Inflicted 8110 | 109 929 187 2570 205 . 1152 2958 . Guns 7756 | 109 918 187 2565 205 . 1137 2635 . Cannons 314 | . . . . . . . 314 . Explosions . | . . . . . . . . . Melee . | . . . . . . . . . Ramming 40 | . 11 . 5 . . 15 9 . Kinetic 7756 | 109 918 187 2565 205 . 1137 2635 . Thermal 314 | . . . . . . . 314 . Explosive . | . . . . . . . . . Electromagnetic . | . . . . . . . . . Impact . | . . . . . . . . . Slashing . | . . . . . . . . . Piercing . | . . . . . . . . . Highest Corruption 2 | . 2 2 . . . . . . Average Corruption 2 | . 2 2 . . . . . . Corruption Purged . | . . . . . . . . . Corruption Blocked . | . . . . . . . . . Effects 19 | . 12 7 . . . . . . Message Errors 4 | . 2 2 . . . . . . Matter Fused 3 | . 3 . . . . . . . Heat Flow Errors 3 | . 1 2 . . . . . . Energy Discharges 4 | . 3 1 . . . . . . Data Loss (minor) 2 | . . 2 . . . . . . Data Loss (major) 1 | . 1 . . . . . . . Misfires 1 | . 1 . . . . . . . Weapon Failures 1 | . 1 . . . . . . . Overload Shots . | . . . . . . . . . Overflow Damage . | . . . . . . . . . Projectiles . | . . . . . . . . . Explosions . | . . . . . . . . . Melee . | . . . . . . . . . Knockbacks . | . . . . . . . . . Impact . | . . . . . . . . . Kinetic . | . . . . . . . . . Secondary . | . . . . . . . . . Self-Inflicted Damage . | . . . . . . . . . Shots . | . . . . . . . . . Rammed 9 | . 4 . 3 . . 1 1 . Targets Rammed 10 | . 4 . 3 . . 2 1 . Kicked . | . . . . . . . . . Crushed 1 | . . . . . . 1 . . Highest Temperature 290 | . 116 190 290 4 . 30 126 . Average Temperature 39 | . 23 67 79 1 . 9 21 . Received Heat Transfer 811 | . 150 9 303 . . 126 223 . Effects 2 | . . . 2 . . . . . Interference 2 | . . . 2 . . . . . Siege Activations . | . . . . . . . . . Martial Activations . | . . . . . . . . . Shielding Activations . | . . . . . . . . . Robots Disrupted . | . . . . . . . . . Combat Hostiles . | . . . . . . . . . Robots Corrupted . | . . . . . . . . . Combat Hostiles . | . . . . . . . . . Parts Fried . | . . . . . . . . . Impact Corruptions . | . . . . . . . . . Robots Melted . | . . . . . . . . . Combat Hostiles . | . . . . . . . . . Parts Melted 1 | . . . . . . . 1 . Heat Transferred 444 | . . . . . . . 444 . Parts Sabotaged . | . . . . . . . . . Parts Stolen . | . . . . . . . . . Parts Stripped . | . . . . . . . . . Power Chain Reactions . | . . . . . . . . . Alert | -11 -10 -10 -9 -9 -9 -8 -8 -7 ------- Run | Yrd Mat Min Mat Min Exi Min Mat Fac Maximum Alert Level 2 | . . . 2 1 . . 2 . Low Security (%) 57 | 100 100 100 13 57 . 100 33 . Level 1 32 | . . . 79 42 . . 34 . Level 2 9 | . . . 6 . . . 31 . Level 3 . | . . . . . . . . . Level 4 . | . . . . . . . . . Level 5 . | . . . . . . . . . High Security . | . . . . . . . . . Max Security . | . . . . . . . . . Peak Influence 551 | 10 197 96 547 253 . 175 551 . Initial 108 | . . 51 . 108 . . 35 102 Average 190 | 1 80 35 269 189 . 111 303 . Influence Increases 3579 | 10 473 145 1207 245 . 375 1124 . Destroy 0b10 Robot/C 2340 | . 300 80 760 200 . 280 720 . Destroy 0b10 Robot/NC 110 | 10 15 . 45 . . 5 35 . Destroy Leader 584 | . 76 20 208 30 . 60 190 . Successful Hack 43 | . 22 . 9 . . . 12 . Select Force Hacks 240 | . 60 . 120 . . . 60 . Disable Machine 120 | . . 15 15 . . 30 60 . Destroy Structure 22 | . . . 5 . . . 17 . Lose Combat Pursuer 120 | . . 30 45 15 . . 30 . Influence Decreases 3477 | 10 340 278 930 399 123 284 988 125 Entered New Map 555 | . . 82 . 169 123 . 56 125 Time Decay 2022 | 10 340 196 480 230 . 284 482 . Purge Threat 900 | . . . 450 . . . 450 . Squads Dispatched 18 | . 4 . 7 . . . 7 . Investigation 14 | . 4 . 5 . . . 5 . Extermination . | . . . . . . . . . Reinforcement 4 | . . . 2 . . . 2 . Assault . | . . . . . . . . . Garrison . | . . . . . . . . . Intercept . | . . . . . . . . . Searches Triggered . | . . . . . . . . . Construction Impeded . | . . . . . . . . . Haulers Reinforced . | . . . . . . . . . Active Scanning Responses . | . . . . . . . . . Cargo Convoy Interrupts . | . . . . . . . . . Stealth | -11 -10 -10 -9 -9 -9 -8 -8 -7 --------- Run | Yrd Mat Min Mat Min Exi Min Mat Fac Distress Signals 9 | . 3 . 4 . . . 2 . Communications Jammed . | . . . . . . . . . Distress Signals . | . . . . . . . . . Times Spotted 160 | . 28 7 53 9 . 14 49 . Peak Tracking Total 9 | . 5 3 9 3 . 3 7 . Tactical Retreats 7 | . . 1 3 1 . . 2 . Traps | -11 -10 -10 -9 -9 -9 -8 -8 -7 ------- Run | Yrd Mat Min Mat Min Exi Min Mat Fac Traps Triggered 3 | . 3 . . . . . . . Indirectly . | . . . . . . . . . Trap Hack Attempts . | . . . . . . . . . Triggered . | . . . . . . . . . Disarmed . | . . . . . . . . . Reprogrammed . | . . . . . . . . . Reused . | . . . . . . . . . Traps Extracted . | . . . . . . . . . Installed . | . . . . . . . . . Triggered . | . . . . . . . . . Machines | -11 -10 -10 -9 -9 -9 -8 -8 -7 ---------- Run | Yrd Mat Min Mat Min Exi Min Mat Fac Machines Disabled 8 | . . 1 1 . . 2 4 . Max in Single Turn 1 | . . 1 1 . . 1 1 . Garrison Access 1 | . . . . . . . 1 . Machines Repaired . | . . . . . . . . . Machines Dismantled . | . . . . . . . . . Machines Sabotaged . | . . . . . . . . . Overloaded Fab Kills . | . . . . . . . . . Hacking | -11 -10 -10 -9 -9 -9 -8 -8 -7 --------- Run | Yrd Mat Min Mat Min Exi Min Mat Fac Machines Accessed 37 | . 10 . 13 . . . 14 . Terminals 27 | . 8 . 9 . . . 10 . Fabricators . | . . . . . . . . . Repair Stations 1 | . . . . . . . 1 . Recycling Units 4 | . 2 . 2 . . . . . Scanalyzers 4 | . . . 2 . . . 2 . Garrison Access 1 | . . . . . . . 1 . Total Hacks 97 | . 25 . 31 . . . 41 . Successful 63 | . 17 . 18 . . . 28 . Failed 34 | . 8 . 13 . . . 13 . Catastrophic 3 | . . . 2 . . . 1 . Database Lockouts . | . . . . . . . . . Manual 80 | . 22 . 26 . . . 32 . Terminals 85 | . 23 . 26 . . . 36 . Fabricators . | . . . . . . . . . Repair Stations 1 | . . . . . . . 1 . Recycling Units 4 | . 2 . 2 . . . . . Scanalyzers 6 | . . . 3 . . . 3 . Garrison Access 1 | . . . . . . . 1 . Terminal Hacks 25 | . 6 . 6 . . . 13 . Robot Analysis 8 | . 3 . 1 . . . 4 . Prototype ID Bank 2 | . . . . . . . 2 . Machine Index 1 | . . . . . . . 1 . Terminal Index 1 | . 1 . . . . . . . Alert Level 5 | . 1 . 2 . . . 2 . Unreport Threat 6 | . . . 3 . . . 3 . Hauler Manifests 2 | . 1 . . . . . 1 . Fabricator Hacks . | . . . . . . . . . Repair Station Hacks . | . . . . . . . . . Recycling Unit Hacks . | . . . . . . . . . Scanalyzer 2 | . . . 1 . . . 1 . Retrieve Study 2 | . . . 1 . . . 1 . Garrison Access Hacks 1 | . . . . . . . 1 . Seal Access 1 | . . . . . . . 1 . Unauthorized Hacks 35 | . 11 . 11 . . . 13 . Terminals 26 | . 9 . 7 . . . 10 . Botnet 6 | . 3 . 1 . . . 2 . Operators 2 | . 1 . 1 . . . . . Skim 18 | . 5 . 5 . . . 8 . Fabricators . | . . . . . . . . . Repair Stations 1 | . . . . . . . 1 . Patch 1 | . . . . . . . 1 . Recycling Units 4 | . 2 . 2 . . . . . Tunnel 4 | . 2 . 2 . . . . . Scanalyzers 4 | . . . 2 . . . 2 . Extract 4 | . . . 2 . . . 2 . Garrison Access . | . . . . . . . . . Data Cores Recovered 1 | . . . . . . . 1 . Used . | . . . . . . . . . Hacking Detections 22 | . 4 . 9 . . . 9 . Full Trace Events 3 | . . . 1 . . . 2 . Feedback Events . | . . . . . . . . . Feedback Blocked . | . . . . . . . . . Robot Schematics Acquired . | . . . . . . . . . Robots Built . | . . . . . . . . . Authchips . | . . . . . . . . . Time . | . . . . . . . . . Total Robot Build Rating . | . . . . . . . . . Part Schematics Acquired 17 | . . . 5 . . . 12 . Parts Built . | . . . . . . . . . Authchips . | . . . . . . . . . Time . | . . . . . . . . . Total Part Build Rating . | . . . . . . . . . Part Studies Acquired 2 | . . . 1 . . . 1 . Parts Repaired . | . . . . . . . . . Time . | . . . . . . . . . Parts Recycled . | . . . . . . . . . Recycled Matter . | . . . . . . . . . Retrieved Matter . | . . . . . . . . . Retrieved Components . | . . . . . . . . . Parts Scanalyzed . | . . . . . . . . . Part Schematics Acquired . | . . . . . . . . . Parts Damaged . | . . . . . . . . . Bothacking | -11 -10 -10 -9 -9 -9 -8 -8 -7 ------------ Run | Yrd Mat Min Mat Min Exi Min Mat Fac Used RIF Installer . | . . . . . . . . . Robots Hacked . | . . . . . . . . . Non-combat . | . . . . . . . . . Combat . | . . . . . . . . . Robot Hacks Applied . | . . . . . . . . . Relay Couplers Released . | . . . . . . . . . Fabnet Peak Effective % . | . . . . . . . . . Robots Rewired . | . . . . . . . . . Allies Hacked . | . . . . . . . . . Hacks Repelled . | . . . . . . . . . Allies | -11 -10 -10 -9 -9 -9 -8 -8 -7 -------- Run | Yrd Mat Min Mat Min Exi Min Mat Fac Total Allies . | . . . . . . . . . Largest Group . | . . . . . . . . . Highest-Rated Group . | . . . . . . . . . Highest-Rated Ally . | . . . . . . . . . Total Orders . | . . . . . . . . . Ally Attacks . | . . . . . . . . . Total Damage . | . . . . . . . . . Kills . | . . . . . . . . . Allies Corrupted . | . . . . . . . . . Allies Melted . | . . . . . . . . . Intel | -11 -10 -10 -9 -9 -9 -8 -8 -7 ------- Run | Yrd Mat Min Mat Min Exi Min Mat Fac Active Infowar (turns) 4869 | 17 787 562 957 492 150 651 1253 . Sensors 910 | . . . . . . . 910 . Seismic 4776 | 17 787 562 957 492 150 651 1160 . Robot Analysis Total 8 | . 3 . 1 . . . 4 . Derelict Logs Recovered 2 | . . 1 . 1 . . . . Drone Launches . | . . . . . . . . . Drone Recoveries . | . . . . . . . . . Exploration | -11 -10 -10 -9 -9 -9 -8 -8 -7 ------------- Run | Yrd Mat Min Mat Min Exi Min Mat Fac Turns Passed 5260 | 80 787 562 1285 492 150 651 1253 . Spaces Moved 4001 | 54 632 485 903 451 151 481 844 . Core 1 | 1 . . . . . . . . Treads 202 | 11 2 . 73 14 . 73 29 . Legs . | . . . . . . . . . Wheels 3798 | 42 630 485 830 437 151 408 815 . Hover . | . . . . . . . . . Flight . | . . . . . . . . . Fastest Speed 50 | 50 80 110 85 100 100 100 100 . Average Speed 106 | 95 95 110 106 102 100 110 113 . Slowest Speed 250 | 160 160 110 250 170 100 170 170 . Overloaded Moves . | . . . . . . . . . Propulsion Burnouts . | . . . . . . . . . Robots Hopped . | . . . . . . . . . Potential Cave-ins . | . . . . . . . . . Cave-ins Triggered . | . . . . . . . . . Exploration Rate (%) 73 | 3 90 91 79 94 55 94 84 . Regions Visited 8 Branch Regions 4 Pre-discovered Areas 6 | . 4 . 2 . . . . . Known Exits Taken 6 | . . 1 1 1 1 1 1 . Unknown Exits Taken 2 | 1 1 . . . . . . . Scrap Searched 3 | . . 1 . 1 . 1 . . Spaces Dug . | . . . . . . . . . Terrain Destroyed 10 | . . . . . . . 10 . Melee . | . . . . . . . . . Projectile 10 | . . . . . . . 10 . AOE . | . . . . . . . . . Terrain Rammed . | . . . . . . . . . Walls Destroyed . | . . . . . . . . . Machines Disabled . | . . . . . . . . . Actions | -11 -10 -10 -9 -9 -9 -8 -8 -7 --------- Run | Yrd Mat Min Mat Min Exi Min Mat Fac Total 4589 | 66 742 500 1084 470 150 551 1026 . Wait 128 | . 28 1 27 3 . 15 54 . Move 3993 | 53 631 484 902 450 150 480 843 . Hop . | . . . . . . . . . Pick Up 11 | . 4 . 2 . . 1 4 . Fast Attach 26 | 6 3 1 7 . . 1 8 . Attach 1 | . 1 . . . . . . . Detach 1 | . . . . . . . 1 . Swap 8 | . 2 1 2 . . 1 2 . Drop 25 | . 5 1 8 . . 2 9 . Fire 243 | 7 43 8 85 7 . 28 65 . Melee . | . . . . . . . . . Ram . | . . . . . . . . . Kick . | . . . . . . . . . Crush 10 | . 4 . 3 . . 2 1 . Escape Stasis . | . . . . . . . . . Rewire . | . . . . . . . . . Trap . | . . . . . . . . . Miscellaneous 143 | . 21 4 48 10 . 21 39 . Route ------- -11/Scrapyard -10/Materials (discovered 5 exits: *Mat x3 / [*Min x2]) -10/Mines (discovered 3 exits: *Mat x2 / Sub) -9/Materials (discovered 4 exits: *Mat x3 / *Min) -9/Mines (discovered 4 exits: *Mat x2 / *Exi / [*Zio]) -9/Exiles (discovered 2 exits: *Min x2) -8/Mines (discovered 2 exits: *Mat x2) -8/Materials (discovered 5 exits: *Fac x3 / *Sto x2) -7/Factory History --------- Turn | Location | Event 1 | -11/Scrapyard | Upgraded with Propulsion slot (x1) 1 | -11/Scrapyard | Upgraded with Utility slot (x1) 1 | -11/Scrapyard | Upgraded with Weapon slot (x1) 18 | -11/Scrapyard | Discovered new exit (range 15) 81 | -11/Scrapyard | Entered Materials 186 | -10/Materials | Discovered new exit (range 16) 271 | -10/Materials | Discovered new exit (range 16) 309 | -10/Materials | Build established: Mutant 337 | -10/Materials | Learned 2 Storage zone layouts 370 | -10/Materials | Learned location of 2 exits from Mines 394 | -10/Materials | Learned Storage emergency access door positions 396 | -10/Materials | Discovered new exit (range 14) 406 | -10/Materials | Learned location of Subcaves (-10) 408 | -10/Materials | Learned 2 Mines zone layouts 410 | -10/Materials | Identified exit to Materials 421 | -10/Materials | Learned 4 Subcaves zone layouts 435 | -10/Materials | Discovered new exit (range 16) 581 | -10/Materials | Derelicts attacked the area 589 | -10/Materials | Reached level 2 597 | -10/Materials | Upgraded with Utility slot (x1) 597 | -10/Materials | Upgraded with Weapon slot (x1) 868 | -10/Materials | Entered Mines 869 | -10/Mines | Identified exit to Subcaves 883 | -10/Mines | Received a Rocket Launcher from a helpful Derelict 908 | -10/Mines | Joined a pair of Derelicts in attacking an 0b10 outpost 970 | -10/Mines | Reached level 3 1028 | -10/Mines | Learned Materials stockpile data 1120 | -10/Mines | Discovered exit to Materials (range 9) 1123 | -10/Mines | Build established: Gunner 1202 | -10/Mines | Upgraded with Propulsion slot (x1) 1430 | -10/Mines | Entered Materials 1432 | -9/Materials | Reached level 4 1532 | -9/Materials | Upgraded with Utility slot (x1) 1567 | -9/Materials | Discovered new exit (range 15) 1606 | -9/Materials | Reached level 5 1638 | -9/Materials | Upgraded with Utility slot (x1) 1657 | -9/Materials | Destroyed 9 combat bots 1916 | -9/Materials | Reached level 6 1916 | -9/Materials | Upgraded with Weapon slot (x1) 1984 | -9/Materials | Discovered new exit (range 5) 1989 | -9/Materials | Identified exit to Materials 2155 | -9/Materials | Reached level 7 2170 | -9/Materials | Learned Storage emergency access door positions 2275 | -9/Materials | Discovered exit to Materials (range 11) 2644 | -9/Materials | Identified exit to Mines 2715 | -9/Materials | Entered Mines 2717 | -9/Mines | Reached level 8 2718 | -9/Mines | Met a Derelict bent on vengeance 2909 | -9/Mines | A weapon hastily lodged in a ceiling crevice suddenly fell to the ground 3154 | -9/Mines | A Derelict revealed a hidden shortcut to a safe place 3202 | -9/Mines | Deemed a non-threat by the Exiles lab entrance 3203 | -9/Mines | Discovered new exit (range 5) 3206 | -9/Mines | Identified exit to Exiles 3207 | -9/Mines | Entered Exiles 3220 | -9/Exiles | Discovered new exit (range 15) 3232 | -9/Exiles | Met 8R-AWN 3249 | -9/Exiles | Met EX-HEX 3281 | -9/Exiles | Met EX-BIN 3311 | -9/Exiles | Met EX-DEC 3345 | -9/Exiles | Discovered new exit (range 14) 3356 | -9/Exiles | Identified exit to Mines 3357 | -9/Exiles | Entered Mines 3359 | -8/Mines | Reached level 9 3642 | -8/Mines | Discovered exit to Materials (range 3) 3659 | -8/Mines | Reached level 10 4002 | -8/Mines | Discovered exit to Materials (range 8) 4008 | -8/Mines | Entered Materials 4009 | -8/Materials | Identified exit to Storage 4010 | -8/Materials | Reached level 11 4177 | -8/Materials | Upgraded with Utility slot (x2) 4276 | -8/Materials | Reached level 12 4312 | -8/Materials | Upgraded with Utility slot (x1) 4382 | -8/Materials | Build established: Hacker-Gunner 4536 | -8/Materials | Discovered new exit (range 7) 4886 | -8/Materials | Discovered new exit (range 9) 4887 | -8/Materials | Learned 2 Storage zone layouts 4895 | -8/Materials | Identified exit to Factory 4999 | -8/Materials | Learned 4 Factory zone layouts 5033 | -8/Materials | Reached level 13 5117 | -8/Materials | Learned 2 Lower Caves zone layouts 5171 | -8/Materials | Learned Storage trap positions 5261 | -8/Materials | Entered Factory 5261 | -7/Factory | Self-destructed Last Messages --------------- 05155_ Slug penetrates Door. 05166_ Discarded Signal Interpreter. 05168_ Dropped Seismic Detector. 05171_ >> SKIM: Stored Storage trap records. 05171_ >> SKIM: Data seek routine purged. 05184_ Used Protomatter to restore core integrity (+17) 05185_ Terminal disabled. 05185_ A-02 Transporter destroyed. 05189_ Used Protomatter to restore part integrity (+5) 05200_ Dropped Hvy. Particle Cannon. 05200_ Acquired Prototype Energy Cannon. 05200_ Identified Adv. Beam Cannon. 05202_ Dropped Adv. Beam Cannon. 05204_ Acquired Hvy. Particle Cannon. 05230_ Acquired 66 matter. 05246_ Slug penetrates A-02 Transporter. 05246_ A-02 Transporter destroyed. 05250_ Acquired 12 matter. LOCATION=FACTORY GOAL=ESCAPE Map ----- +----------------------------------------------------+ | ?????????????????????????????? | | ?????????????????????????????? | | ?????????????????????????????? | | ?????????????????????????????? | | ?????????????????????????????? | | ?????????????????????????????? | | ?????????????????????????????? | | ?????????????????????????????? | | ?????????????????????????????? | | ?????????????????????????????? | | ?????????????????????????????? | | ?????????????????????????????? | | ?????????????????????????????? | | ?????????????????????????????? | | ?????????????????????????????? | | ?????????????????????????????? | | ?????????????????????????????? | | ?????????????????????????????? | | ?????????????????????????????? | | ?????????????????????????????? | | ?????????????????????????????? | | ?????????????????????????????? | | ??#######????????????????????? | | ??# #????????????????????? | | ??# #????????????????????? | | ??# @ #????????????????????? | | ??# ???????????????? | | ??# #???????????? | | ??# #???????????? | | ??# ?????????? | | ??#+#+#############??????????? | | ?????????????????????????????? | | ?????????????????????????????? | | ?????????????????????????????? | | ?????????????????????????????? | | ?????????????????????????????? | | ?????????????????????????????? | | ?????????????????????????????? | | ?????????????????????????????? | | ?????????????????????????????? | | ?????????????????????????????? | | ?????????????????????????????? | | ?????????????????????????????? | | ?????????????????????????????? | | ?????????????????????????????? | | ?????????????????????????????? | | ?????????????????????????????? | | ?????????????????????????????? | | ?????????????????????????????? | | ?????????????????????????????? | +----------------------------------------------------+ Best States ------------- Heat Dissipation 55 Energy Generation 19 Energy Capacity 265 Matter Stores 500 Matter Capacity 500 Sight Range 16 Robot Scan Range 15 Terrain Scan Density 10 Armor Coverage 225 Resistance: TH 5 Evasion (%) 44 Targeting Accuracy 8 Recoil Reduction 2 Offensive Hacking 30 Defensive Hacking 10 Item Schematics ----------------- Med. Matter Pod | -9/Materials | Extracted Imp. Targeting Computer | -9/Materials | Extracted Hvy. Ion Engine | -9/Materials | Extracted Wheel | -9/Materials | Extracted Med. Armor Plating | -9/Materials | Extracted Cesium-ion Thruster | -8/Materials | Extracted Imp. Light Armor Plating | -8/Materials | Extracted Hvy. Mace | -8/Materials | Extracted Assault Cannon | -8/Materials | Extracted Com. Wheel | -8/Materials | Extracted Seismic Detector | -8/Materials | Extracted Cooling System | -8/Materials | Extracted Sensor Array | -8/Materials | Extracted Imp. Terrain Scanner | -8/Materials | Extracted Trap Scanner | -8/Materials | Extracted EM Pulse Cannon | -8/Materials | Extracted Deuterium Engine | -8/Materials | Extracted Robot Schematics ------------------ None Fabricated ------------ Nothing Repaired ---------- Nothing Studied --------- Wheel | -9/Materials | Hacked Autogun | -8/Materials | Hacked Alien Tech Used ----------------- None Achievements -------------- None Challenges ------------ None RPGLIKE | -11 -10 -10 -9 -9 -9 -8 -8 -7 --------- Run | Yrd Mat Min Mat Min Exi Min Mat Fac Levels Raised 12 | . 1 1 4 1 . 2 3 . XP Earned 21255 | 3000 2200 1075 6996 1354 139 2350 4141 . XP Spent 18800 | 2650 1850 1150 4900 . . 750 7500 . Upgrades 29 | 8 3 3 9 . . 1 5 . Propulsion Slot 2 | 1 . 1 . . . . . . Utility Slot 7 | 1 1 . 2 . . . 3 . Weapon Slot 3 | 1 1 . 1 . . . . . Heat Dissipation 5 | . . 1 4 . . . . . Energy Generation 1 | . . 1 . . . . . . Inventory Capacity 4 | . 1 . 1 . . 1 1 . Ranged Accuracy 1 | 1 . . . . . . . . Hack Attack % 2 | 1 . . 1 . . . . . Hack Defense % 2 | 1 . . . . . . 1 . TH Resistance % 1 | 1 . . . . . . . . KI Damage % 1 | 1 . . . . . . . . Protomatter Created 1639 | . 137 31 567 45 . 264 595 . Integrity Restored 2387 | . 398 47 915 125 . 377 525 . Core 1703 | . 300 27 678 70 . 265 363 . Parts 684 | . 98 20 237 55 . 112 162 . Protomatter Decayed 628 | . . 68 203 . . 21 336 . Game ------ Seed InterdictionTachyonCharge Manual? 0 Play Time 00:55:17 Cumulative 361.6 hours Start 2026.06.27 @ 07:54:57 End 2026.06.27 @ 12:57:12 Sessions 2 Manual Loads 0 Difficulty Rogue Special Mode Winter2019/RPGLIKE Game No. 148 Rogue 100 Adventurer 44 Explorer 4 Win Type - Total 11 Types 4/3/0/1/1/1/0/1/0/0 Lore% 77 Gallery% 69 Achievement% 56 Wizard Run 0 Options --------- Layout 0 ASCII 0 Keyboard 0 Movement Arrows Keybinds 0 Fullscreen 2 Font 18/SmallcapsGlow Map View 76x50 Zoom Use 0% Tactical HUD 1 Map Filters NONE Filters NONE Steam 1 RUN: 6d4b0973-da2c-4832-9a9f-807f7de0da1c